Cogmind - Beta 12 @@@ ROGUE MODE // 2023.05.25 @ 00:25:23 Player: Mr Goldstein Result: Destroyed by G-34 Mercenary with Small Laser Performance ------------- Evolutions (0) 0 Regions Visited (1) 200 Robots Destroyed (40) 200 Value Destroyed (911) 911 Prototype IDs (0) 0 Alien Tech Used (0) 0 Bonus (40) 40 TOTAL SCORE: 1351 Bonus ------- High Alert Combat Kills 40 Cogmind --------- Core Integrity 0/250 Matter 128/300 Energy 125/125 System Corruption 0% Temperature Cool (24) Movement Rolling (110) Ox2 Location -10/Materials Parts ------- > --- POWER (1) -------- Light Ion Engine > --- PROPULSION (2) --- Wheel Wheel > --- UTILITY (2) ------ High-capacity Storage Unit Light Armor Plating > --- WEAPON (2) ------- Grenade Launcher Grenade Launcher > --- INVENTORY (20) --- Wheel Wheel Wheel Large Matter Pod (150) High-capacity Matter Pod (162) Core Shielding Light Assault Rifle Light Assault Rifle Light Assault Rifle Heavy Assault Rifle Heavy Assault Rifle Heavy Assault Rifle Light Cannon Light Cannon Light Cannon Light Cannon Light Cannon Light Cannon Light Cannon Peak State ------------ > --- POWER ------------ Light Ion Engine > --- PROPULSION ------- Wheel Wheel > --- UTILITY ---------- High-capacity Storage Unit Core Shielding > --- WEAPON ----------- Heavy Assault Rifle Heavy Assault Rifle > --- INVENTORY -------- Wheel Wheel Wheel Large Matter Pod High-capacity Matter Pod Power Shielding Light Assault Rifle Light Assault Rifle Light Assault Rifle Heavy Assault Rifle Light Cannon Light Cannon Light Cannon Light Cannon Light Cannon Light Cannon Light Cannon Light Cannon Light Cannon [Rating: 11] Favorites ----------- Power Light Ion Engine Engine Light Ion Engine Propulsion Wheel Wheel Wheel Utility High-capacity Storage Unit Storage High-capacity Storage Unit Hackware Hacking Suite Protection Light Armor Plating Weapon Light Cannon Ballistic Gun Heavy Assault Rifle Ballistic Cannon Light Cannon Launcher Grenade Launcher Build | -11 -10 ------- Run | Jun Mat Slots Evolved . | . . Power . | . . Propulsion . | . . Utility . | . . Weapon . | . . Parts Attached 25 | 5 20 Power 3 | 2 1 Engine 3 | 2 1 Core . | . . Reactor . | . . Propulsion 4 | 2 2 Treads . | . . Leg . | . . Wheel 4 | 2 2 Hover . | . . Flight . | . . Utility 6 | 1 5 Device . | . . Storage 2 | 1 1 Processor . | . . Hackware 1 | . 1 Protection 3 | . 3 Artifact . | . . Weapon 12 | . 12 Energy Gun . | . . Energy Cannon . | . . Ballistic Gun 3 | . 3 Ballistic Cannon 6 | . 6 Launcher 3 | . 3 Special Weapon . | . . Impact Weapon . | . . Slashing Weapon . | . . Piercing Weapon . | . . Special Melee Weapon . | . . Unidentified Prototypes . | . . Parts Lost 4 | . 4 Power 1 | . 1 Propulsion 2 | . 2 Utility . | . . Weapon 1 | . 1 Highest Loss Streak 4 | . 4 To Critical Strikes . | . . Average Slot Usage (%) 97 | . 97 Engine 13 | . 13 Wheel 27 | . 27 Storage 14 | . 14 Hackware 1 | . 1 Protection 12 | . 12 Ballistic Gun 4 | . 4 Ballistic Cannon 17 | . 17 Launcher 3 | . 3 Naked Turns . | . . Heaviest Build 52 | 10 52 Greatest Support 32 | 32 32 Greatest Overweight (x) 2 | . 2 Average Overweight (x) 1 | . 1 Largest Inventory Capacity 20 | 8 20 Average Capacity 18 | 7 18 Most Carried 20 | 1 20 Average Carried 16 | . 16 Final Capacity 20 | 8 20 Final Carried 19 | 1 19 Class Distribution -------------------- 100% | Mutant Dominant Class ---------------- Mutant | -10/Materials Resources | -11 -10 ----------- Run | Jun Mat Matter Collected 1497 | 219 1278 Remotely . | . . Salvage Created 1029 | . 1029 Parts 71 | . 71 Haulers Intercepted 2 | . 2 Recyclers Shooed 1 | . 1 Parts Field Recycled . | . . Retrieved Matter . | . . Parts Self-Destructed . | . . Prevented . | . . Kills | -11 -10 ------- Run | Jun Mat Combat Hostiles Destroyed 31 | . 31 Guns 6 | . 6 Cannons 20 | . 20 AOE 5 | . 5 Classes Destroyed 8 | . 8 Worker 5 | . 5 Builder 1 | . 1 Hauler 2 | . 2 Recycler 1 | . 1 Operator 1 | . 1 Watcher 3 | . 3 Swarmer 6 | . 6 Grunt 25 | . 25 Best Kill Streak 5 | . 5 Combat Bots Only 5 | . 5 Max Kills in Single Turn 2 | . 2 Gunslinging 1 | . 1 Exploded 1 | . 1 Melee . | . . Uniques/NPCs Destroyed . | . . Combat | -11 -10 -------- Run | Jun Mat Damage Taken 1027 | . 1027 Core 253 | . 253 Absorbed by Shields . | . . Redirected to Shielding 32 | . 32 Regen/Repaired (Parts) 37 | . 37 Core Remaining (%) 100 | 100 . Volleys Fired 110 | . 110 Largest 2 | . 2 Hottest 70 | . 70 Shots Fired 219 | . 219 Gun 55 | . 55 Cannon 146 | . 146 Launcher 18 | . 18 Special . | . . Kinetic 201 | . 201 Thermal . | . . Explosive 18 | . 18 Electromagnetic . | . . Robot Hit Streak 12 | . 12 Robot Miss Streak 5 | . 5 Penetration Max . | . . Secondary Targets 2 | . 2 Max Gunslinging Chain 1 | . 1 Shots Hit Robots 116 | . 116 Core Hits 51 | . 51 Critical Kills . | . . Critical Parts Destroyed . | . . Critical Strikes 2 | . 2 Blast 2 | . 2 Melee Attacks . | . . Impact . | . . Slashing . | . . Piercing . | . . Sneak Attacks . | . . Combat Hostiles . | . . Follow-up Attacks . | . . Damage Inflicted 2748 | . 2748 Guns 515 | . 515 Cannons 1565 | . 1565 Explosions 666 | . 666 Melee . | . . Ramming 2 | . 2 Kinetic 2080 | . 2080 Thermal . | . . Explosive 666 | . 666 Electromagnetic . | . . Impact . | . . Slashing . | . . Piercing . | . . Highest Corruption . | . . Average Corruption . | . . Corruption Purged . | . . Corruption Blocked . | . . Overload Shots . | . . Overflow Damage 16 | . 16 Projectiles . | . . Explosions 16 | . 16 Melee . | . . Knockbacks 16 | . 16 Impact . | . . Kinetic 14 | . 14 Secondary 2 | . 2 Self-Inflicted Damage 1 | . 1 Shots . | . . Rammed 1 | . 1 Targets Rammed 1 | . 1 Kicked . | . . Crushed . | . . Highest Temperature 210 | . 210 Average Temperature 42 | . 42 Received Heat Transfer 375 | . 375 Siege Activations . | . . Robots Corrupted . | . . Combat Hostiles . | . . Parts Fried . | . . Impact Corruptions . | . . Robots Melted . | . . Combat Hostiles . | . . Parts Melted . | . . Heat Transferred . | . . Parts Sabotaged . | . . Parts Stolen . | . . Parts Stripped . | . . Power Chain Reactions . | . . Missiles Intercepted . | . . Alert | -11 -10 ------- Run | Jun Mat Peak Influence 546 | . 546 Initial . | . . Average 139 | . 142 Maximum Alert Level 2 | . 2 Low Security (%) 73 | 100 73 Level 1 18 | . 18 Level 2 8 | . 8 Level 3 . | . . Level 4 . | . . Level 5 . | . . High Security . | . . Max Security . | . . Squads Dispatched 10 | . 10 Investigation 10 | . 10 Extermination . | . . Reinforcement . | . . Assault . | . . Garrison . | . . Intercept . | . . Searches Triggered . | . . Construction Impeded . | . . Haulers Reinforced . | . . Active Scanning Responses . | . . Cargo Convoy Interrupts . | . . Stealth | -11 -10 --------- Run | Jun Mat Distress Signals . | . . Communications Jammed . | . . Distress Signals . | . . Times Spotted 36 | . 36 Peak Tracking Total 4 | . 4 Tactical Retreats 1 | . 1 Traps | -11 -10 ------- Run | Jun Mat Traps Triggered 1 | . 1 Indirectly . | . . Trap Hack Attempts . | . . Triggered . | . . Disarmed . | . . Reprogrammed . | . . Reused . | . . Traps Extracted . | . . Installed . | . . Triggered . | . . Machines | -11 -10 ---------- Run | Jun Mat Machines Disabled 4 | . 4 Max in Single Turn 1 | . 1 Machines Repaired . | . . Machines Sabotaged . | . . Overloaded Fab Kills . | . . Hacking | -11 -10 --------- Run | Jun Mat Machines Accessed 11 | . 11 Terminals 8 | . 8 Fabricators . | . . Repair Stations 1 | . 1 Recycling Units 2 | . 2 Scanalyzers . | . . Garrison Access . | . . Total Hacks 33 | . 33 Successful 14 | . 14 Failed 19 | . 19 Catastrophic 2 | . 2 Database Lockouts . | . . Manual 28 | . 28 Terminals 28 | . 28 Fabricators . | . . Repair Stations 3 | . 3 Recycling Units 2 | . 2 Scanalyzers . | . . Garrison Access . | . . Terminal Hacks 2 | . 2 Robot Analysis 2 | . 2 Fabricator Hacks . | . . Repair Station Hacks 2 | . 2 Scan Component 1 | . 1 Repair 1 | . 1 Recycling Unit Hacks . | . . Scanalyzer . | . . Garrison Access Hacks . | . . Unauthorized Hacks 10 | . 10 Terminals 8 | . 8 Disrupt 4 | . 4 Search 4 | . 4 Fabricators . | . . Repair Stations . | . . Recycling Units 2 | . 2 Tunnel 2 | . 2 Scanalyzers . | . . Garrison Access . | . . Data Cores Recovered . | . . Used . | . . Hacking Detections 7 | . 7 Full Trace Events 4 | . 4 Feedback Events . | . . Feedback Blocked . | . . Robot Schematics Acquired . | . . Robots Built . | . . Authchips . | . . Time . | . . Total Robot Build Rating . | . . Part Schematics Acquired . | . . Parts Built . | . . Authchips . | . . Time . | . . Total Part Build Rating . | . . Parts Repaired 1 | . 1 Time 26 | . 26 Parts Recycled . | . . Recycled Matter . | . . Retrieved Matter . | . . Retrieved Components . | . . Parts Scanalyzed . | . . Part Schematics Acquired . | . . Parts Damaged . | . . Bothacking | -11 -10 ------------ Run | Jun Mat Used RIF Installer . | . . Robots Hacked . | . . Non-combat . | . . Combat . | . . Robot Hacks Applied . | . . Relay Couplers Released . | . . Fabnet Peak Effective % . | . . Robots Rewired . | . . Allies Hacked . | . . Hacks Repelled . | . . Allies | -11 -10 -------- Run | Jun Mat Total Allies . | . . Largest Group . | . . Highest-Rated Group . | . . Highest-Rated Ally . | . . Total Orders . | . . Ally Attacks . | . . Total Damage . | . . Kills . | . . Allies Corrupted . | . . Allies Melted . | . . Intel | -11 -10 ------- Run | Jun Mat Robot Analysis Total 2 | . 2 Derelict Logs Recovered . | . . Drone Launches . | . . Drone Recoveries . | . . Exploration | -11 -10 ------------- Run | Jun Mat Turns Passed 2627 | 40 2587 Spaces Moved 1645 | 36 1609 Core 6 | 6 . Treads . | . . Legs . | . . Wheels 1639 | 30 1609 Hover . | . . Flight . | . . Fastest Speed 50 | 50 100 Average Speed 109 | 91 110 Slowest Speed 115 | 100 115 Overloaded Moves . | . . Propulsion Burnouts . | . . Robots Hopped . | . . Cave-ins Triggered . | . . Exploration Rate (%) 51 | 4 98 Regions Visited 1 Branch Regions . Pre-discovered Areas 2 | . 2 Known Exits Taken . | . . Unknown Exits Taken 1 | 1 . Scrap Searched . | . . Spaces Dug 11 | . 11 Terrain Destroyed 45 | . 45 Melee . | . . Projectile . | . . AOE 45 | . 45 Terrain Rammed . | . . Walls Destroyed . | . . Machines Disabled . | . . Actions | -11 -10 --------- Run | Jun Mat Total 2244 | 40 2204 Wait 429 | . 429 Move 1644 | 35 1609 Hop . | . . Pick Up 27 | . 27 Fast Attach 9 | 4 5 Attach 7 | . 7 Detach 1 | . 1 Swap 9 | 1 8 Drop 7 | . 7 Fire 110 | . 110 Melee . | . . Ram 1 | . 1 Kick . | . . Crush . | . . Escape Stasis . | . . Rewire . | . . Trap . | . . Miscellaneous . | . . Route ------- -11/Junkyard -10/Materials (discovered 4 exits: [*Mat x3] / [*Min]) History --------- Turn | Location | Event 21 | -11/Junkyard | Discovered new exit (range 15) 41 | -11/Junkyard | Entered Materials 305 | -10/Materials | Build established: Mutant 441 | -10/Materials | Discovered new exit (range 3) 706 | -10/Materials | Discovered new exit (range 11) 884 | -10/Materials | Core integrity fell below 50% 922 | -10/Materials | Lost 4 parts (1p2n1w) 1011 | -10/Materials | Discovered new exit (range 15) 1134 | -10/Materials | Discovered new exit (range 6) 1812 | -10/Materials | Core integrity fell below 20% 2498 | -10/Materials | Repaired Grenade Launcher 2628 | -10/Materials | Destroyed by G-34 Mercenary with Small Laser Last Messages --------------- >>Force(Search) SEARCH_COMPLETE[5] DISCOVERED[3xTerminal] DISCOVERED[1xRepair Station] DISCOVERED[1xRecycling Unit] COORDINATES_EXTRACTED 02517_ ALERT: Suspicious activity at Terminal M003. Dispatching Investigation squad. 02545_ G-34 Mercenary destroyed. 02557_ K-01 Serf destroyed. 02564_ The unstable cave ceiling collapses. 02573_ Acquired 12 matter. 02577_ The unstable cave ceiling collapses. 02595_ Connecting with Recycling Unit... >>Force(Tunnel) DISCOVERED[-5/Factory] 02595_ ALERT: Suspicious activity at Recycling Unit M001. Dispatching Investigation squad. 02624_ G-34 Mercenary destroyed. 02627_ Destroyed Ion Engine. Map ----- +----------------------------------------------------+ | ??????# # | | ????########+# # | | ????# # # | | ????#"" """ /# ######### | | ????#"T """ # #???????? | | ????#"" """ # #???????? | | ????# # #???????? | | ????# "" = #???????? | | ????# "" ########? | | ????# """ #? | | ????# # #? | | ????####### # """ #? | | ?????????# ## """""?? | | ?????????# # """"??? | | ?????????### """"??? | | ????# # # """??? | | ????# """ # # #? | | ????# """ # ###########? | | ????# """ # #??????????? | | ????# # #??????????# | | ????# """ # #?????????## | | ????# """ # #?????????#! | | ????# """ # #?????????#! | | ????# + #?????????#! | | ???##### [ #?????????#! | | ???#@ g #?????????## | | ???# """ #??????????# | | ???# """ Y" # #??????????? | | ???# """ """ #??????????? | | ???# """ # #??????????? | | ???# """ # #??????????? | | ???# """ # #???????#### | | ???# # #???????# | | ???########### ^ #???????# !! | | ?????????????# <^#???????# !! | | ?????????????# #???????# !! | | ?????????????#####???????# | | ?????????????????????????# | | ?????????????????????????# | | ?????????????????????????# | | ?????????????????????????#### | | ????????????????????????????? | | ????????????????????????????? | | ????????????????????????????? | | ????????????????????????????? | | | | | | | | | | | +----------------------------------------------------+ Best States ------------- Heat Dissipation 25 Energy Generation 10 Energy Capacity 250 Matter Stores 300 Matter Capacity 300 Sight Range 16 Terrain Scan Density 10 Armor Coverage 150 Core Shielding 20 Evasion (%) 40 Offensive Hacking 10 Item Schematics ----------------- None Robot Schematics ------------------ None Fabricated ------------ Nothing Alien Tech Used ----------------- None Achievements -------------- None Challenges ------------ None Game ------ Seed RefineryCompactCalibrator Manual? 0 Play Time 00:19:27 Cumulative 238.8 hours Start 2023.05.24 @ 23:42:13 End 2023.05.25 @ 00:25:23 Sessions 1 Manual Loads 0 Difficulty Rogue Special Mode None Game No. 718 Rogue 718 Adventurer 0 Explorer 0 Win Type - Total 10 Types 8/0/1/1/0/0/0/0/0 Lore% 86 Gallery% 82 Achievement% 73 Wizard Run 0 Options --------- ASCII 0 Keyboard 0 Movement Mouse Keybinds 0 Fullscreen 1 Font 16/SmallcapsGlow Map View 75x55 Tactical HUD 1 Map Filters NONE Filters NONE Steam 1 RUN: 819c5e36-d1e1-4709-869c-043e13107a11